bitfinex-derivatives/quotes_BTCF0:USTF0_20241122
["timestamp","ask_amount","ask_price","bid_price","bid_amount"]
[1732268228066,0.3608,98567.0,98554.0,0.0332]
[1732268228260,0.3608,98567.0,98555.0,0.050684]
[1732268228661,0.3608,98567.0,98554.0,0.0332]
[1732268228862,0.05068,98565.0,98554.0,0.0332]
[1732268229259,0.050686,98552.0,98551.0,0.0301]
[1732268229464,0.050686,98553.0,98548.0,0.00052]
[1732268229665,0.48470641,98559.0,98544.0,0.0324]
[1732268229961,0.050683,98558.0,98544.0,0.0324]
[1732268230271,0.48470641,98559.0,98544.0,0.0324]
[1732268230272,0.48558642,98559.0,98550.0,0.092487]
[1732268230467,0.39426641,98559.0,98550.0,0.0418]
[1732268230774,0.09044,98558.0,98550.0,0.0418]
[1732268231072,0.39426641,98559.0,98557.0,0.050683]
[1732268231261,0.39426641,98559.0,98558.0,0.0323]
[1732268232069,0.41453068,98559.0,98558.0,0.0323]
[1732268232367,0.41453068,98559.0,98551.0,0.050686]
[1732268232573,0.41453068,98559.0,98550.0,0.0418]
[1732268232574,0.46521268,98559.0,98550.0,0.0418]
[1732268232873,0.41453068,98559.0,98550.0,0.0418]
[1732268233068,0.3608,98590.0,98560.0,0.050682]
[1732268233264,0.02026427,98588.0,98572.0,0.3608]
[1732268233674,0.02026427,98588.0,98580.0,0.050671]
[1732268234372,0.02026427,98588.0,98573.0,0.0309]
[1732268234773,0.02026427,98588.0,98586.0,0.050668]
[1732268239872,0.02026427,98604.0,98586.0,0.050668]
[1732268240074,0.02026427,98604.0,98595.0,0.050664]
[1732268240269,0.07478911,98603.0,98596.0,0.0333]
[1732268240476,0.04176,98603.0,98596.0,0.0333]
[1732268240981,0.04176,98603.0,98596.0,0.33758]
[1732268241667,0.04176,98603.0,98602.0,0.05066]
[1732268241868,0.04176,98603.0,98602.0,0.41146]
[1732268242077,0.04176,98603.0,98602.0,0.7157]
[1732268244480,0.04176,98603.0,98602.0,0.41146]
[1732268249380,0.09242,98603.0,98602.0,0.3608]
[1732268249571,0.04176,98603.0,98602.0,0.3608]
[1732268249975,0.04176,98603.0,98593.0,0.3608]
[1732268250176,0.04176,98603.0,98588.0,0.050667]
[1732268250177,0.050663,98598.0,98588.0,0.050667]
[1732268250368,0.08988,98598.0,98588.0,0.050667]
[1732268250577,0.08988,98598.0,98583.0,0.3632]
[1732268250578,0.3608,98596.0,98583.0,0.3632]
[1732268250784,0.3608,98588.0,98577.0,0.0024]
[1732268250972,0.3608,98588.0,98575.0,0.00152166]
[1732268250973,0.05067,98583.0,98575.0,0.00152166]
[1732268251275,0.12825367,98587.0,98575.0,0.00152166]
[1732268251276,0.45068,98586.0,98575.0,0.00152166]
[1732268251476,0.050674,98576.0,98575.0,0.00152166]
[1732268252281,0.16164289,98587.0,98567.0,0.050678]
[1732268252282,0.39418922,98587.0,98567.0,0.050678]
[1732268252480,0.3608,98587.0,98567.0,0.050678]
[1732268252667,0.3608,98587.0,98566.0,0.12825367]
[1732268252868,0.3608,98587.0,98586.0,0.050668]
[1732268253069,0.12256578,98591.0,98590.0,0.050666]
[1732268253277,0.14283127,98591.0,98590.0,0.050666]
[1732268254380,0.14283127,98591.0,98578.0,0.0315]
[1732268254576,0.14283127,98591.0,98583.0,0.05067]
[1732268254782,0.050666,98590.0,98583.0,0.05067]
[1732268255080,0.081766,98590.0,98581.0,0.050671]
[1732268255279,0.050668,98587.0,98577.0,0.411473]
[1732268255471,0.050669,98585.0,98577.0,0.050673]
[1732268255672,0.3608,98588.0,98570.0,0.050677]
[1732268255877,0.12825367,98580.0,98570.0,0.050677]
[1732268256182,0.12825367,98580.0,98569.0,0.3608]
[1732268256183,0.45072,98579.0,98569.0,0.3608]
[1732268256372,0.050674,98575.0,98569.0,0.3608]
[1732268256575,0.050673,98577.0,98569.0,0.3608]
[1732268258083,0.3608,98579.0,98569.0,0.3608]
[1732268258282,0.050677,98570.0,98569.0,0.3608]
[1732268259580,0.3608,98570.0,98559.0,0.050682]
[1732268259778,0.050678,98568.0,98559.0,0.050682]
[1732268259977,0.0954,98569.0,98551.0,0.0024]
[1732268260282,0.0954,98569.0,98546.0,0.0024]
[1732268260283,0.050685,98555.0,98546.0,0.0024]
[1732268260488,0.050685,98555.0,98550.0,0.4026]
[1732268260792,0.48905367,98561.0,98550.0,0.4026]
[1732268260793,0.050682,98560.0,98552.0,0.050686]
[1732268262185,0.050682,98560.0,98553.0,0.050685]
[1732268262486,0.08992,98567.0,98553.0,0.050685]
[1732268262684,0.05068,98563.0,98553.0,0.050685]
[1732268263384,0.12297308,98567.0,98550.0,0.4032]
[1732268263693,0.050682,98561.0,98553.0,0.050685]
[1732268264187,0.12297308,98567.0,98558.0,0.050683]
[1732268264188,0.05068,98565.0,98558.0,0.050683]
[1732268264386,0.050679,98565.0,98550.0,0.4026]
[1732268264685,0.12825367,98560.0,98550.0,0.4026]
[1732268265085,0.050685,98554.0,98550.0,0.4026]
[1732268265293,0.050682,98559.0,98550.0,0.4026]
[1732268265481,0.12825367,98560.0,98550.0,0.4026]
[1732268265989,0.3608,98561.0,98550.0,0.4026]
[1732268266193,0.3608,98561.0,98555.0,0.050684]
[1732268266693,0.3608,98561.0,98550.0,0.40312]
[1732268266881,0.050686,98551.0,98550.0,0.0418]
[1732268267578,0.140604,98556.0,98550.0,0.0418]
[1732268268096,0.08992,98556.0,98550.0,0.0418]
[1732268268896,0.08992,98556.0,98551.0,0.050686]
[1732268269286,0.08992,98556.0,98550.0,0.0418]
[1732268269792,0.08992,98556.0,98555.0,0.050684]
[1732268270385,0.08992,98557.0,98550.0,0.0418]
[1732268270581,0.08992,98557.0,98556.0,0.050684]
[1732268270784,0.08992,98557.0,98553.0,0.050685]
[1732268271197,0.08992,98557.0,98550.0,0.0418]
[1732268271380,0.08992,98557.0,98554.0,0.050685]
[1732268275085,0.0202681,98560.0,98554.0,0.050685]
[1732268275291,0.0202681,98560.0,98559.0,0.050682]
[1732268275988,0.0202681,98560.0,98555.0,0.03162]
[1732268276297,0.0202681,98560.0,98554.0,0.050685]
[1732268276492,0.0202681,98560.0,98551.0,0.3608]
[1732268276697,0.0202681,98560.0,98555.0,0.050684]
[1732268276907,0.0202681,98560.0,98556.0,0.050684]
[1732268277293,0.0202681,98560.0,98551.0,0.050686]
[1732268277496,0.0202681,98560.0,98554.0,0.050685]
[1732268277886,0.0202681,98560.0,98555.0,0.050684]
[1732268278395,0.0202681,98560.0,98550.0,0.0418]
[1732268278396,0.0709501,98560.0,98550.0,0.0418]
[1732268278598,0.0709501,98560.0,98553.0,0.050685]
[1732268279191,0.0202681,98560.0,98550.0,0.0418]
[1732268280490,0.050684,98556.0,98550.0,0.0418]
[1732268280697,0.050685,98555.0,98550.0,0.0418]
[1732268281000,0.0709501,98560.0,98550.0,0.0418]
[1732268281202,0.0202681,98560.0,98550.0,0.0418]
[1732268281394,0.050685,98555.0,98550.0,0.0418]
[1732268282497,0.050683,98558.0,98550.0,0.0418]
[1732268283095,0.050683,98558.0,98550.0,0.092487]
[1732268284986,0.08381926,98558.0,98550.0,0.092487]
[1732268285189,0.03313626,98558.0,98552.0,0.050686]
[1732268285392,0.0202681,98560.0,98552.0,0.050686]
[1732268285802,0.0202681,98560.0,98550.0,0.0418]
[1732268285803,0.0202681,98560.0,98554.0,0.050685]
[1732268285991,0.09612,98559.0,98550.0,0.0418]
[1732268286587,0.0202681,98560.0,98550.0,0.0418]
[1732268286789,0.09612,98559.0,98550.0,0.0418]
[1732268287094,0.09612,98559.0,98558.0,0.050683]
[1732268287597,0.09612,98559.0,98558.0,0.06018444]
[1732268288397,0.0202681,98560.0,98558.0,0.050683]
[1732268288603,0.1163881,98560.0,98558.0,0.050683]
[1732268288907,0.1163881,98560.0,98555.0,0.050684]
[1732268289303,0.1163881,98560.0,98550.0,0.0418]
[1732268289597,0.24464177,98560.0,98556.0,0.050684]
[1732268290189,0.24464177,98560.0,98550.0,0.0418]
[1732268290499,0.24464177,98560.0,98553.0,0.050685]
[1732268292305,0.27844762,98560.0,98553.0,0.050685]
[1732268292511,0.32912962,98560.0,98551.0,0.050686]
[1732268292808,0.050683,98559.0,98551.0,0.050686]
[1732268293706,0.27844762,98560.0,98550.0,0.0418]
[1732268293905,0.050684,98557.0,98550.0,0.0418]
[1732268297508,0.050684,98557.0,98550.0,0.092487]
[1732268298102,0.095,98559.0,98550.0,0.092487]
[1732268298103,0.09612,98556.0,98550.0,0.0418]
[1732268298303,0.09612,98556.0,98555.0,0.050684]
[1732268298898,0.09612,98556.0,98552.0,0.050686]
[1732268299106,0.09612,98556.0,98553.0,0.050685]
[1732268299310,0.09612,98556.0,98555.0,0.050684]
[1732268300209,0.05407395,98560.0,98550.0,0.0418]
[1732268300405,0.0202681,98560.0,98559.0,0.050682]
[1732268300712,0.1163881,98560.0,98559.0,0.050682]
[1732268301105,0.0202681,98560.0,98559.0,0.050682]
[1732268301307,0.0202681,98560.0,98559.0,0.06018344]
[1732268302113,0.0202681,98560.0,98559.0,0.050682]
[1732268303110,0.0202681,98560.0,98559.0,0.06018344]
[1732268303914,0.50932177,98570.0,98562.0,0.050681]
[1732268304115,0.54253521,98570.0,98563.0,0.00950144]
[1732268304304,0.54253521,98570.0,98564.0,0.00950144]
[1732268304506,0.54253521,98570.0,98565.0,0.00950144]
[1732268304707,0.09276,98569.0,98566.0,0.00950144]
[1732268304919,0.09276,98569.0,98562.0,0.050681]
[1732268304920,0.09276,98569.0,98567.0,0.00950144]
[1732268305116,0.09276,98569.0,98562.0,0.050681]
[1732268305117,0.09276,98569.0,98568.0,0.00950144]
[1732268305827,0.09276,98569.0,98564.0,0.05068]
[1732268308240,0.09276,98569.0,98558.0,0.3608]
[1732268308429,0.143438,98569.0,98558.0,0.411483]
[1732268308635,0.143438,98569.0,98558.0,0.050683]
[1732268308839,0.09276,98569.0,98554.0,0.0024]
[1732268309141,0.3608,98568.0,98559.0,0.050682]
[1732268309338,0.3608,98568.0,98561.0,0.00373572]
[1732268309536,0.3608,98568.0,98562.0,0.00950144]
[1732268309738,0.3608,98568.0,98563.0,0.00950144]
[1732268309939,0.3608,98568.0,98565.0,0.00373572]
[1732268310236,0.411478,98568.0,98566.0,0.00950144]
[1732268310540,0.411478,98568.0,98565.0,0.00373572]
[1732268310541,0.411478,98568.0,98567.0,0.00950144]
[1732268310937,0.411478,98568.0,98567.0,0.01323716]
[1732268311638,0.411478,98568.0,98567.0,0.00373572]
[1732268311940,0.66516,98568.0,98556.0,0.00950144]
[1732268312133,0.66516,98568.0,98557.0,0.00950144]
[1732268312134,0.12825367,98566.0,98557.0,0.00950144]
[1732268312338,0.050682,98560.0,98558.0,0.00950144]
[1732268312536,0.050682,98560.0,98559.0,0.00950144]
[1732268312735,0.411482,98560.0,98559.0,0.00950144]
[1732268314753,0.41287645,98560.0,98559.0,0.00950144]
[1732268315543,0.411482,98560.0,98559.0,0.01216631]
[1732268315946,0.509482,98560.0,98559.0,0.01216631]
[1732268316447,0.3608,98560.0,98559.0,0.01216631]
[1732268317538,0.3608,98560.0,98559.0,0.00266487]
[1732268317939,0.39366554,98560.0,98559.0,0.05334687]
[1732268318138,0.39366554,98560.0,98559.0,0.00266487]
[1732268318345,0.41393395,98560.0,98559.0,0.00266487]
[1732268321145,0.41393395,98560.0,98559.0,0.00153117]
[1732268321750,0.41393395,98560.0,98559.0,0.00165877]
[1732268322750,0.41393395,98560.0,98550.0,0.0418]
[1732268322946,0.050685,98554.0,98550.0,0.0418]
[1732268323144,0.050686,98551.0,98550.0,0.0418]
[1732268330049,0.050685,98555.0,98550.0,0.0418]
[1732268330354,0.050686,98552.0,98550.0,0.0418]
[1732268330557,0.050686,98551.0,98550.0,0.0418]
[1732268333057,0.050686,98551.0,98550.0,0.01513454]
[1732268334560,0.050686,98551.0,98550.0,0.02463598]
[1732268335151,0.1589,98559.0,98550.0,0.02463598]
[1732268335347,0.1589,98559.0,98550.0,0.01513454]
[1732268335559,0.050685,98555.0,98550.0,0.01513454]
[1732268335858,0.02027037,98551.0,98550.0,0.42662154]
[1732268336257,0.18147995,98560.0,98550.0,0.37593454]
[1732268336554,0.18147995,98560.0,98553.0,0.050685]
[1732268337155,0.18147995,98560.0,98550.0,0.37645454]
[1732268337352,0.18147995,98560.0,98555.0,0.050684]
[1732268337955,0.18147995,98560.0,98559.0,0.050682]
[1732268338260,0.18147995,98560.0,98550.0,0.37645454]
[1732268338261,0.18147995,98560.0,98554.0,0.050685]
[1732268338457,0.18147995,98560.0,98556.0,0.050684]
[1732268339660,0.18147995,98560.0,98558.0,0.050683]
[1732268339860,0.18147995,98560.0,98551.0,0.0641]
[1732268339861,0.18147995,98560.0,98559.0,0.050682]
[1732268340161,0.18147995,98560.0,98559.0,0.060183]
[1732268340356,0.05313395,98560.0,98559.0,0.050682]
[1732268340664,0.02026841,98560.0,98559.0,0.050682]
[1732268340865,0.02026841,98560.0,98559.0,0.060183]
[1732268343259,0.02026841,98560.0,98559.0,0.050682]
[1732268345761,0.02026841,98560.0,98557.0,0.033]
[1732268346560,0.02026841,98560.0,98551.0,0.0641]
[1732268346561,0.411482,98559.0,98558.0,0.0016105]
[1732268346767,0.02662546,98558.0,98547.0,0.04570953]
[1732268347063,0.08420766,98557.0,98542.0,0.019701]
[1732268347256,0.08420766,98553.0,98542.0,0.0102]
[1732268347468,0.3608,98547.0,98542.0,0.0102]
[1732268347668,0.050691,98542.0,98535.0,0.0102]
[1732268347866,0.050691,98542.0,98532.0,0.050696]
[1732268348270,0.04176,98533.0,98529.0,0.0412]
[1732268348458,0.04176,98533.0,98529.0,0.031]
[1732268348663,0.04176,98533.0,98521.0,0.0102]
[1732268348664,0.050697,98530.0,98521.0,0.0102]
[1732268348859,0.04176,98533.0,98515.0,0.0102]
[1732268348860,0.08420766,98531.0,98515.0,0.0102]
[1732268349065,0.3608,98526.0,98516.0,0.411504]
[1732268349270,0.08420766,98525.0,98516.0,0.411504]
[1732268349470,0.44500766,98526.0,98516.0,0.411504]
[1732268349673,0.44500766,98526.0,98517.0,0.050704]
[1732268349874,0.44500766,98526.0,98516.0,0.3608]
[1732268350071,0.050703,98519.0,98516.0,0.3608]
[1732268350272,0.3608,98517.0,98510.0,0.0102]
[1732268350575,0.3608,98517.0,98506.0,0.05071]
[1732268350774,0.3608,98517.0,98507.0,0.3608]
[1732268351277,0.3608,98517.0,98506.0,0.05071]
[1732268351278,0.411504,98517.0,98506.0,0.41151]
[1732268352078,0.411504,98517.0,98506.0,0.05071]
[1732268352373,0.3608,98517.0,98507.0,0.050709]
[1732268353176,0.3608,98517.0,98506.0,0.3608]
[1732268353377,0.3608,98517.0,98512.0,0.05222938]
[1732268353571,0.3608,98517.0,98513.0,0.050706]
[1732268353778,0.3608,98517.0,98512.0,0.00152238]
[1732268354478,0.39374281,98517.0,98512.0,0.00152238]
[1732268357484,0.03294281,98517.0,98512.0,0.00152238]
[1732268357691,0.02027697,98518.0,98514.0,0.0507]
[1732268358191,0.11283697,98518.0,98514.0,0.0507]
[1732268359294,0.11283697,98518.0,98512.0,0.00152238]
[1732268359597,0.050701,98513.0,98512.0,0.00152238]
[1732268359796,0.14596751,98518.0,98512.0,0.00152238]
[1732268359995,0.050701,98513.0,98512.0,0.00152238]
[1732268360192,0.14596751,98518.0,98512.0,0.00152238]
[1732268364295,0.14596751,98518.0,98515.0,0.0507]
[1732268365100,0.14596751,98518.0,98512.0,0.00152238]
[1732268365699,0.14596751,98518.0,98512.0,0.05222338]
[1732268365901,0.14596751,98518.0,98513.0,0.050701]
[1732268366303,0.14596751,98518.0,98514.0,0.0507]
[1732268367808,0.14596751,98518.0,98512.0,0.00152238]
[1732268371905,0.19666551,98518.0,98512.0,0.00152238]
[1732268372300,0.14596751,98518.0,98512.0,0.00152238]
[1732268372506,0.14596751,98518.0,98513.0,0.00950482]
[1732268372701,0.14596751,98518.0,98514.0,0.00950482]
[1732268372907,0.05340751,98518.0,98515.0,0.00950482]
[1732268373107,0.09384,98517.0,98513.0,0.00950482]
[1732268373404,0.09384,98517.0,98512.0,0.00152238]
[1732268373405,0.09384,98517.0,98515.0,0.0507]
[1732268373609,0.09384,98517.0,98516.0,0.00950482]
[1732268373914,0.09384,98517.0,98513.0,0.00950482]
[1732268374110,0.09384,98517.0,98514.0,0.00950482]
[1732268374312,0.09384,98517.0,98515.0,0.00950482]
[1732268374612,0.09384,98517.0,98516.0,0.00950482]
[1732268376520,0.09384,98517.0,98513.0,0.050701]
[1732268377508,0.09384,98517.0,98514.0,0.0507]
[1732268378018,0.09384,98517.0,98508.0,0.3608]
[1732268378221,0.09384,98517.0,98516.0,0.050699]
[1732268378907,0.09384,98517.0,98516.0,0.411499]
[1732268379819,0.09384,98517.0,98516.0,0.42100382]
[1732268381520,0.09384,98517.0,98516.0,0.411499]
[1732268382818,0.02027697,98518.0,98517.0,0.050699]
[1732268383015,0.09624,98534.0,98517.0,0.06020382]
[1732268383219,0.0024,98532.0,98529.0,0.050693]
[1732268383421,0.09384,98534.0,98529.0,0.06019782]
[1732268383720,0.39400393,98531.0,98529.0,0.06019782]
[1732268384522,0.39400393,98531.0,98529.0,0.00950482]
[1732268384712,0.39400393,98531.0,98519.0,0.0126]
[1732268384914,0.050695,98525.0,98520.0,0.00950354]
[1732268385225,0.0842973,98529.0,98518.0,0.050698]
[1732268385417,0.0842973,98529.0,98516.0,0.3608]
[1732268385418,0.0842973,98529.0,98519.0,0.050698]
[1732268385609,0.1349903,98529.0,98519.0,0.050698]
[1732268385814,0.0842973,98529.0,98522.0,0.050696]
[1732268386114,0.0842973,98529.0,98516.0,0.3608]
[1732268386319,0.0842973,98529.0,98526.0,0.050694]
[1732268386619,0.39400393,98531.0,98516.0,0.3608]
[1732268386821,0.39400393,98531.0,98529.0,0.050693]
[1732268387019,0.11411328,98530.0,98529.0,0.050693]
[1732268388623,0.02027328,98530.0,98529.0,0.050693]
[1732268394918,0.02027328,98530.0,98529.0,0.06019554]
[1732268396725,0.02027328,98530.0,98529.0,0.050693]
[1732268397724,0.02027328,98530.0,98529.0,0.06019554]
[1732268397919,0.02027328,98530.0,98529.0,0.050693]
[1732268401526,0.07096528,98530.0,98529.0,0.050693]
[1732268402233,0.02027328,98530.0,98529.0,0.050693]
[1732268402635,0.02027328,98530.0,98524.0,0.3608]
[1732268402827,0.050695,98525.0,98524.0,0.3608]
[1732268403129,0.050695,98525.0,98524.0,0.411495]
[1732268403336,0.050693,98528.0,98524.0,0.4209979]
[1732268403541,0.050693,98528.0,98525.0,0.0095029]
[1732268403749,0.050693,98528.0,98526.0,0.0095029]
[1732268403944,0.050693,98528.0,98524.0,0.412015]
[1732268403945,0.050693,98528.0,98527.0,0.0095029]
[1732268404138,0.0947,98529.0,98524.0,0.36132]
[1732268404344,0.0947,98529.0,98525.0,0.050695]
[1732268404540,0.0947,98529.0,98528.0,0.050693]
[1732268409051,0.0947,98529.0,98527.0,0.0095029]
[1732268409345,0.145393,98529.0,98528.0,0.0095029]
[1732268409540,0.050695,98525.0,98518.0,0.050698]
[1732268409845,0.050695,98525.0,98514.0,0.0126]
[1732268409846,0.050696,98524.0,98516.0,0.411499]
[1732268410242,0.04176,98517.0,98516.0,0.411499]
[1732268410951,0.04176,98517.0,98516.0,0.3608]
[1732268412144,0.07486495,98517.0,98516.0,0.3608]
[1732268417355,0.12556395,98517.0,98516.0,0.3608]
[1732268418258,0.12556395,98517.0,98516.0,0.3703029]
[1732268418654,0.12556395,98517.0,98516.0,0.0095029]
[1732268420145,0.12556395,98517.0,98510.0,0.412022]
[1732268420346,0.12556395,98517.0,98510.0,0.411502]
[1732268420552,0.04176,98511.0,98510.0,0.411502]
[1732268421853,0.04176,98511.0,98510.0,0.4210049]
[1732268422545,0.04176,98511.0,98510.0,0.411502]
[1732268424658,0.04176,98511.0,98510.0,0.4210049]
[1732268426648,0.04176,98511.0,98510.0,0.411502]
[1732268432265,0.04176,98511.0,98510.0,0.050702]
[1732268432559,0.04176,98511.0,98510.0,0.716022]
[1732268432765,0.05338119,98517.0,98516.0,0.050699]
[1732268432959,0.02027624,98517.0,98516.0,0.0602019]
[1732268435753,4.5e-07,98528.0,98526.0,0.050694]
[1732268435956,0.00152286,98537.0,98536.0,0.050689]
[1732268436160,0.00152286,98537.0,98536.0,0.4209919]
[1732268436566,0.00152286,98537.0,98536.0,0.411489]
[1732268436753,0.03495534,98537.0,98536.0,0.411489]
[1732268440869,0.02027374,98550.0,98549.0,0.050682]
[1732268441171,0.0024,98561.0,98560.0,0.050677]
[1732268441369,0.02131374,98566.0,98565.0,0.050674]
[1732268441665,0.02027373,98566.0,98565.0,0.050674]
[1732268446265,0.02027373,98566.0,98565.0,0.4209769]
[1732268446468,0.02027373,98582.0,98581.0,0.050666]
[1732268446659,0.02027373,98582.0,98581.0,0.0601689]
[1732268447264,0.3608,98597.0,98595.0,0.050659]
[1732268448063,0.02026228,98596.0,98595.0,0.050659]
[1732268449474,0.02026228,98596.0,98595.0,0.411459]
[1732268455569,0.03366546,98600.0,98595.0,0.411459]
[1732268455770,0.03366546,98600.0,98599.0,0.050657]
[1732268459972,0.03317546,98600.0,98599.0,0.050657]
[1732268460167,0.04176,98603.0,98597.0,0.0882]
[1732268460486,0.050657,98601.0,98600.0,0.050656]
[1732268460779,0.04176,98603.0,98595.0,0.411459]
[1732268460780,0.06765977,98603.0,98595.0,0.411459]
[1732268461071,0.0635,98600.0,98595.0,0.411459]
[1732268461473,0.050658,98596.0,98595.0,0.3608]
[1732268461671,0.0635,98600.0,98588.0,0.0102]
[1732268461876,0.05066,98593.0,98588.0,0.0102]
[1732268462077,4e-05,98589.0,98587.0,0.3608]
[1732268462472,4e-05,98588.0,98587.0,0.3608]
[1732268463479,4e-05,98588.0,98587.0,0.411463]
[1732268466277,4e-05,98588.0,98587.0,0.3608]
[1732268466474,0.050702,98588.0,98587.0,0.3608]
[1732268467474,0.050664,98586.0,98583.0,0.0102]
[1732268467679,0.050664,98586.0,98581.0,0.050666]
[1732268467882,4e-05,98584.0,98581.0,0.050666]
[1732268468182,4e-05,98582.0,98581.0,0.050666]
[1732268468683,0.050668,98578.0,98576.0,0.0126]
[1732268468869,0.0636,98581.0,98575.0,0.36132]
[1732268469177,0.050709,98576.0,98575.0,0.3608]
[1732268469379,0.050669,98575.0,98570.0,0.0126]
[1732268469579,0.050669,98575.0,98564.0,0.0126]
[1732268469883,0.050669,98575.0,98538.0,0.0027]
[1732268469884,0.050675,98564.0,98547.0,0.0095029]
[1732268470075,0.3608,98555.0,98532.0,0.3608]
[1732268470275,0.050688,98538.0,98532.0,0.3608]
[1732268470482,4e-05,98533.0,98532.0,0.3608]
[1732268472288,4e-05,98533.0,98532.0,0.411491]
[1732268473584,0.02647533,98533.0,98532.0,0.411491]
[1732268474478,0.02647533,98533.0,98532.0,0.715971]
[1732268475380,4e-05,98533.0,98532.0,0.715971]
[1732268476083,4e-05,98533.0,98532.0,0.411491]
[1732268483389,0.050731,98533.0,98532.0,0.3608]
[1732268483684,0.050731,98533.0,98532.0,0.411491]
[1732268484589,0.050731,98533.0,98532.0,0.3608]
[1732268486079,4e-05,98533.0,98532.0,0.411491]
[1732268486287,4e-05,98533.0,98532.0,0.3608]
[1732268486492,0.050731,98533.0,98532.0,0.3608]
[1732268488089,0.050693,98528.0,98523.0,0.0024]
[1732268488283,0.050693,98528.0,98521.0,0.3608]
[1732268488284,0.050692,98532.0,98526.0,0.050694]
[1732268488490,0.0627,98534.0,98521.0,0.3608]
[1732268488491,4e-05,98524.0,98521.0,0.3608]
[1732268488691,4e-05,98524.0,98523.0,0.050696]
[1732268488887,0.12830594,98533.0,98521.0,0.3608]
[1732268489192,0.050694,98528.0,98524.0,0.050695]
[1732268489585,0.050694,98528.0,98525.0,0.050695]
[1732268489801,0.12830594,98533.0,98521.0,0.3608]
[1732268489993,0.050694,98528.0,98524.0,0.050695]
[1732268490181,0.050696,98524.0,98521.0,0.3608]
[1732268490386,0.12830594,98533.0,98521.0,0.3608]
[1732268490594,0.050695,98525.0,98521.0,0.3608]
[1732268490800,0.12830594,98533.0,98521.0,0.3608]
[1732268491089,0.050696,98524.0,98521.0,0.3608]
[1732268491596,0.12830594,98531.0,98521.0,0.3608]
[1732268491597,0.050696,98522.0,98521.0,0.3608]
[1732268492097,0.01000025,98522.0,98521.0,0.3703024]
[1732268492389,0.050696,98522.0,98521.0,0.3703024]
[1732268492589,0.050696,98522.0,98521.0,0.3608]
[1732268492791,0.050696,98522.0,98521.0,0.3703024]
[1732268493187,0.050696,98522.0,98521.0,0.3608]
[1732268494386,0.050696,98522.0,98516.0,0.0024]
[1732268494698,0.050701,98513.0,98510.0,0.0024]
[1732268494897,0.050701,98513.0,98504.0,0.411505]
[1732268495093,0.050741,98513.0,98504.0,0.3608]
[1732268495297,0.050741,98513.0,98504.0,0.4210074]
[1732268495496,0.050741,98513.0,98504.0,0.3608]
[1732268496399,0.050741,98513.0,98505.0,0.050705]
[1732268497095,0.050741,98513.0,98506.0,0.0095024]
[1732268497308,0.050741,98513.0,98507.0,0.0095024]
[1732268497493,0.050741,98513.0,98504.0,0.3608]
[1732268500494,0.050741,98513.0,98503.0,0.0024]
[1732268500495,0.050706,98504.0,98503.0,0.0024]
[1732268500688,0.05071,98495.0,98494.0,0.0024]
[1732268500893,0.41151,98495.0,98488.0,0.0024]
[1732268501094,0.050713,98489.0,98481.0,0.0024]
[1732268501300,0.050713,98489.0,98468.0,0.050724]
[1732268501301,0.050716,98484.0,98476.0,0.0024]
[1732268501595,0.3608,98485.0,98470.0,0.411523]
[1732268501596,0.050721,98475.0,98470.0,0.36376]
[1732268501801,0.0024,98482.0,98471.0,0.00950752]
[1732268502004,0.050719,98479.0,98472.0,0.00950752]
[1732268502307,0.08824,98484.0,98477.0,0.050719]
[1732268502603,0.08824,98484.0,98478.0,0.0313]
[1732268503094,0.08824,98484.0,98481.0,0.050717]
[1732268503300,0.38690289,98485.0,98483.0,0.050716]
[1732268504202,0.38690289,98485.0,98484.0,0.050716]
[1732268504696,0.0125,98492.0,98491.0,0.050712]
[1732268505000,0.3810778,98495.0,98491.0,0.050712]
[1732268505001,0.3608,98495.0,98494.0,0.050711]
[1732268506095,0.02610289,98496.0,98484.0,0.053116]
[1732268506096,0.02610289,98496.0,98495.0,0.05071]
[1732268506296,0.0202778,98497.0,98496.0,0.05071]
[1732268506896,0.0202778,98497.0,98496.0,0.06021752]
[1732268507203,0.0202778,98497.0,98496.0,0.05071]
[1732268507700,0.0125,98502.0,98501.0,0.050707]
[1732268507900,0.07777313,98502.0,98501.0,0.050707]
[1732268508095,0.050707,98502.0,98501.0,0.050707]
[1732268508700,0.43757612,98507.0,98506.0,0.050705]
[1732268509098,0.45785679,98507.0,98506.0,0.050705]
[1732268509699,0.04635279,98507.0,98504.0,0.050706]
[1732268509907,0.050707,98502.0,98501.0,0.050707]
[1732268510404,4e-05,98505.0,98498.0,0.062]
[1732268510605,4e-05,98505.0,98504.0,0.050706]
[1732268511803,0.02596899,98505.0,98504.0,0.050706]
[1732268513102,4e-05,98505.0,98504.0,0.050706]
[1732268513298,0.050745,98505.0,98504.0,0.050706]
[1732268514104,4e-05,98505.0,98504.0,0.050706]
[1732268515203,4e-05,98505.0,98504.0,0.06021352]
[1732268515517,0.02028067,98507.0,98506.0,0.050705]
[1732268515816,0.02028067,98507.0,98506.0,0.06021252]
[1732268516515,0.02028067,98507.0,98506.0,0.050705]
[1732268517013,0.0125,98516.0,98504.0,0.050706]
[1732268517207,0.08997377,98516.0,98515.0,0.0507]
[1732268517403,0.02677377,98516.0,98515.0,0.0507]
[1732268517614,0.36332346,98521.0,98520.0,0.050697]
[1732268517615,0.36232346,98521.0,98520.0,0.050697]
[1732268518015,0.41302046,98521.0,98520.0,0.050697]
[1732268518519,0.43924531,98521.0,98520.0,0.050697]
[1732268518717,0.38854831,98521.0,98511.0,0.0024]
[1732268518910,0.050701,98516.0,98515.0,0.050699]
[1732268519118,0.050701,98516.0,98515.0,0.06020652]
[1732268520111,0.38854831,98521.0,98517.0,0.050699]
[1732268520306,0.050697,98520.0,98516.0,0.00950752]
[1732268520514,0.38854831,98521.0,98517.0,0.00950752]
[1732268520713,0.0507,98515.0,98512.0,0.050701]
[1732268520912,0.3608,98513.0,98512.0,0.050701]
[1732268521218,0.36084,98513.0,98512.0,0.050701]
[1732268521817,0.36084,98513.0,98512.0,0.06020852]
[1732268523915,4e-05,98513.0,98512.0,0.06020852]